Workbook

Sheet Калькулятор 2
Q1: АКЦИЯ 7-7-7 | CF1: =CONCATENATE(K1) ->  | CG1: =IF(Q1="АКЦИЯ 0-0-6","А",IF(Q1="АКЦИЯ 0-0-12","А","")) ->  | CH1: =RIGHT(K1,CS1-CR1) ->  | CL1: =CONCATENATE(K1,CG1,"/П-",CH2,CI2,CK2,AC1) -> /П-0618 | CR1: =SEARCH("к",K1) ->  | CS1: =LEN(K1) -> 0 | CY1: AMKf1server | DD1: ОБЫЧНАЯ | DE1: АКЦИЯ 0-0-6 | DF1: АКЦИЯ 7-7-7 | DG1: АКЦИЯ 0-0-12
A2: Дата заключения | K2: =CONCATENATE(CG2,".",CH2,CI2,".",CJ2,"г.") -> 25.06.2018г. | AF2: =NOW() -> 2018-06-25T17:09:16.230 | AG2: =CONCATENATE(K2) -> 25.06.2018г. | CE2: =DAY(AF2) -> 25 | CG2: =DAY(AF2) -> 25 | CH2: =IF(CI2<10,0,"") -> 0 | CI2: =MONTH(AF2) -> 6 | CJ2: =YEAR(AF2) -> 2018 | CK2: =RIGHT(CJ2,2) -> 18 | CL2: =CONCATENATE(K1,CG1,"/КП-",CH2,CI2,CK2,AC1) -> /КП-0618 | CY2: =CONCATENATE(K2) -> 25.06.2018г.
A3: Наименование Товара | AG3: =CONCATENATE(AG1," от ",AG2) -> от 25.06.2018г. | CG3: =CONCATENATE(CH3,AC1) -> А7 | CH3: =IF(Q1="АКЦИЯ 0-0-6","А6",IF(Q1="АКЦИЯ 7-7-7","А7",IF(Q1="АКЦИЯ 0-0-12","А12",""))) -> А7 | CL3: =CONCATENATE(L3) -> 
A4: Виды Товаров | H4: Спальный гарнитур | K4: Кухонная мебель | N4: Мягкая мебель | Q4: Бытовая техника | T4: Телевизоры | W4: Телефоны | Z4: Шкаф-купе | AC4: Иное | AF4: 0.25 | CL4: Спальный гарнитур | CM4: Кухонная мебель | CN4: Мягкая мебель | CO4: Бытовая техника | CP4: Телевизоры | CQ4: Телефоны | CR4: Шкаф-купе | CS4: Иное
A5: Чеки на сумму | Z5: 100000 | AF5: =K12/4 -> 25000 | CK5: =SUM(CL5:CS5) -> 100000 | CL5: =SUM(H5:J8) -> 0 | CM5: =SUM(K5:M8) -> 0 | CN5: =SUM(N5:P8) -> 0 | CO5: =SUM(Q5:S8) -> 0 | CP5: =SUM(T5:V8) -> 0 | CQ5: =SUM(W5:Y8) -> 0 | CR5: =SUM(Z5:AB8) -> 100000 | CS5: =SUM(AC5:AE8) -> 0
A6: Чеки на сумму | AF6: 0.3 | CL6: =ROUND(CL5-(K10/CK5)*CL5,2) -> 0 | CM6: =ROUND(CM5-(K10/CK5)*CM5,2) -> 0 | CN6: =ROUND(CN5-(K10/CK5)*CN5,2) -> 0 | CO6: =ROUND(CO5-(K10/CK5)*CO5,2) -> 0 | CP6: =ROUND(CP5-(K10/CK5)*CP5,2) -> 0 | CQ6: =ROUND(CQ5-(K10/CK5)*CQ5,2) -> 0 | CR6: =ROUND(CR5-(K10/CK5)*CR5,2) -> 93000 | CS6: =ROUND(CS5-(K10/CK5)*CS5,2) -> 0
A7: Чеки на сумму | AF7: =K12*30/100 -> 30000 | CL7: =IF(CL6>0,1,0) -> 0 | CM7: =IF(CM6>0,1,0) -> 0 | CN7: 0 | CO7: 0 | CP7: 0 | CQ7: 0 | CR7: 1 | CS7: 0
A8: Чеки на сумму | AF8: 0.07 | CI8: =WEEKDAY(AF2) -> 2
A9: Срок ( в мес) | K9: 7 | AF9: =K12*7/100 -> 7000 | CL9: ВС | CM9: ПН | CN9: ВТ | CO9: СР | CP9: ЧТ | CQ9: ПТ | CR9: СБ
A10: Обеспечительный взнос | K10: 7000 | AF10: 0.5 | CF10: Скидка Киргу | CH10: Общая наценка | CL10: =IF(CI8=1,1,0) -> 0 | CM10: =IF(CI8=2,1,0) -> 1 | CN10: =IF(CI8=3,1,0) -> 0 | CO10: =IF(CI8=4,1,0) -> 0 | CP10: =IF(CI8=5,1,0) -> 0 | CQ10: =IF(CI8=6,1,0) -> 0 | CR10: =IF(CI8=7,1,0) -> 0
A11: Количество Поручителей | K11: 0 | AF11: =K12/2 -> 50000 | CE11: =IF(Q1="АКЦИЯ 0-0-6",11,IF(Q1="АКЦИЯ 7-7-7",10,IF(Q1="АКЦИЯ 0-0-12",22,0))) -> 10 | CF11: =ROUND((K12*CE11)/100,2) -> 10000 | CH11: =ROUND(CF11+K15,0) -> 17000
A12: Стоимость Товара | K12: =SUM(CL5:CS5) -> 100000 | CL12: =CONCATENATE(S12) -> 
A13: Сумма ежемесячного платежа | K13: =ROUND((K14-K10)/K9,0) -> 14286 | CL13: =CONCATENATE(S13) -> 
A14: Полная стоимость Товара | K14: =K12+K15 -> 107000 | CF14: По Обычной сделке | CL14: =CONCATENATE(S14) -> 
A15: Наша наценка | K15: =IF(AND(Q1="АКЦИЯ 7-7-7",K9<=7),ROUND(K12*CP17/100,0),ROUND((K12-K10)*CP17/12*K9/100,0)) -> 7000 | CF15: =ROUND((K16*CP20*K9)/(12*100),0) -> 0 | CH15: =IF((CN18+CO18)=0,0,IF(CF15-CF11>=0,CF15-CF11,0)) -> 0 | CL15: =CONCATENATE(S15) ->  | CU15: =AND(CM19=1,N5*30/100<K10) -> FALSE
A16: Сумма финансирования * | K16: =K12-K10 -> 93000 | CH16: =IF((CN19+CO19)=0,0,IF(CF15-CF11>=0,CF15-CF11,0)) -> 0 | CL16: =CONCATENATE(S16) -> 
C17: * | D17: Если сумма финансирования менее 200 000р.срок рассмотрения 30 мин. | CL17: Минимальная годовая % надбавка | CM17: 22 | CO17: =IF(Q1="АКЦИЯ 0-0-6",CS18+CT18,IF(Q1="АКЦИЯ 7-7-7",CS21+CT21,IF(Q1="АКЦИЯ 0-0-12",CS19+CT19,CT20+CS20))) -> 7 | CP17: =CO17 -> 7 | CS17: Наценка по сроку
D18: Если сумма финансирования более 200 000р. срок рассмотрения 2-3 дня . | CL18: Увеличение без поручителей | CM18: 6 | CQ18: АКЦИЯ 0-0-6 | CS18: =IF(K9<=6,0,IF(K9<=12,11,22)) -> 11 | CT18: =IF(AND(CM19=1,K12*30/100<=K10),0,IF(AND(CM19=0,K12*50/100<=K10),0,IF(CM19=2,0,IF(CM19=1,6,16)))) -> 16
D19: Если сумма финансирования менее 80 000р. допускается без поручителей | CM19: =IF(K11>=2,2,IF(K11=1,1,0)) -> 0 | CQ19: АКЦИЯ 0-0-12 | CS19: =IF(K9<=12,0,11) -> 0 | CT19: =IF(AND(CM19=1,K12*30/100<=K10),0,IF(AND(CM19=0,K12*50/100<=K10),0,IF(CM19=2,0,IF(CM19=1,6,16)))) -> 16
CQ20: Обычная | CS20: 22 | CT20: =IF(CM19=2,0,IF(CM19=1,6,16)) -> 16
CQ21: АКЦИЯ 7-7-7 | CS21: =IF(AND(K9<=7,K10>=AF9),7,IF(K9<=12,28,33)) -> 7 | CT21: =IF(AND(CM19=0,K9>7),0,IF(AND(CM19=1,K9>7),-10,IF(AND(CM19=2,K9>7),-16,0))) -> 0

Sheet Калькулятор1
Q1: АКЦИЯ 7-7-7 | CF1: =CONCATENATE(K1) ->  | CG1: =IF(Q1="АКЦИЯ 0-0-6","А",IF(Q1="АКЦИЯ 0-0-12","А","")) ->  | CH1: =RIGHT(K1,CS1-CR1) ->  | CL1: =CONCATENATE(K1,CG1,"/П-",CH2,CI2,CK2,AC1) -> /П-0618 | CR1: =SEARCH("к",K1) ->  | CS1: =LEN(K1) -> 0 | CY1: AMKf1server | DD1: ОБЫЧНАЯ | DE1: АКЦИЯ 0-0-6 | DF1: АКЦИЯ 7-7-7 | DG1: АКЦИЯ 0-0-12
A2: Дата заключения | K2: =CONCATENATE(CG2,".",CH2,CI2,".",CJ2,"г.") -> 25.06.2018г. | AF2: =NOW() -> 2018-06-25T17:09:16.230 | AG2: =CONCATENATE(K2) -> 25.06.2018г. | CE2: =DAY(AF2) -> 25 | CG2: =DAY(AF2) -> 25 | CH2: =IF(CI2<10,0,"") -> 0 | CI2: =MONTH(AF2) -> 6 | CJ2: =YEAR(AF2) -> 2018 | CK2: =RIGHT(CJ2,2) -> 18 | CL2: =CONCATENATE(K1,CG1,"/КП-",CH2,CI2,CK2,AC1) -> /КП-0618 | CY2: =CONCATENATE(K2) -> 25.06.2018г.
A3: Наименование Товара | AG3: =CONCATENATE(AG1," от ",AG2) -> от 25.06.2018г. | CG3: =CONCATENATE(CH3,AC1) -> А7 | CH3: =IF(Q1="АКЦИЯ 0-0-6","А6",IF(Q1="АКЦИЯ 7-7-7","А7",IF(Q1="АКЦИЯ 0-0-12","А12",""))) -> А7 | CL3: =CONCATENATE(L3) -> 
A4: Виды Товаров | H4: Спальный гарнитур | K4: Кухонная мебель | N4: Мягкая мебель | Q4: Бытовая техника | T4: Телевизоры | W4: Телефоны | Z4: Шкаф-купе | AC4: Иное | AF4: 0.25 | CL4: Спальный гарнитур | CM4: Кухонная мебель | CN4: Мягкая мебель | CO4: Бытовая техника | CP4: Телевизоры | CQ4: Телефоны | CR4: Шкаф-купе | CS4: Иное
A5: Чеки на сумму | Z5: 100000 | AF5: =K12/4 -> 25000 | CK5: =SUM(CL5:CS5) -> 100000 | CL5: =SUM(H5:J8) -> 0 | CM5: =SUM(K5:M8) -> 0 | CN5: =SUM(N5:P8) -> 0 | CO5: =SUM(Q5:S8) -> 0 | CP5: =SUM(T5:V8) -> 0 | CQ5: =SUM(W5:Y8) -> 0 | CR5: =SUM(Z5:AB8) -> 100000 | CS5: =SUM(AC5:AE8) -> 0
A6: Чеки на сумму | AF6: 0.3 | CL6: =ROUND(CL5-(K10/CK5)*CL5,2) -> 0 | CM6: =ROUND(CM5-(K10/CK5)*CM5,2) -> 0 | CN6: =ROUND(CN5-(K10/CK5)*CN5,2) -> 0 | CO6: =ROUND(CO5-(K10/CK5)*CO5,2) -> 0 | CP6: =ROUND(CP5-(K10/CK5)*CP5,2) -> 0 | CQ6: =ROUND(CQ5-(K10/CK5)*CQ5,2) -> 0 | CR6: =ROUND(CR5-(K10/CK5)*CR5,2) -> 93000 | CS6: =ROUND(CS5-(K10/CK5)*CS5,2) -> 0
A7: Чеки на сумму | AF7: =K12*30/100 -> 30000 | CL7: =IF(CL6>0,1,0) -> 0 | CM7: =IF(CM6>0,1,0) -> 0 | CN7: 0 | CO7: 0 | CP7: 0 | CQ7: 0 | CR7: 1 | CS7: 0
A8: Чеки на сумму | AF8: 0.07 | CI8: =WEEKDAY(AF2) -> 2
A9: Срок ( в мес) | K9: 7 | AF9: =K12*7/100 -> 7000 | CL9: ВС | CM9: ПН | CN9: ВТ | CO9: СР | CP9: ЧТ | CQ9: ПТ | CR9: СБ
A10: Обеспечительный взнос | K10: 7000 | AF10: 0.5 | CF10: Скидка Киргу | CH10: Общая наценка | CL10: =IF(CI8=1,1,0) -> 0 | CM10: =IF(CI8=2,1,0) -> 1 | CN10: =IF(CI8=3,1,0) -> 0 | CO10: =IF(CI8=4,1,0) -> 0 | CP10: =IF(CI8=5,1,0) -> 0 | CQ10: =IF(CI8=6,1,0) -> 0 | CR10: =IF(CI8=7,1,0) -> 0
A11: Количество Поручителей | K11: 0 | AF11: =K12/2 -> 50000 | CE11: =IF(Q1="АКЦИЯ 0-0-6",11,IF(Q1="АКЦИЯ 7-7-7",10,IF(Q1="АКЦИЯ 0-0-12",22,0))) -> 10 | CF11: =ROUND((K12*CE11)/100,2) -> 10000 | CH11: =ROUND(CF11+K15,0) -> 17000
A12: Стоимость Товара | K12: =SUM(CL5:CS5) -> 100000 | CL12: =CONCATENATE(S12) -> 
A13: Сумма ежемесячного платежа | K13: =ROUND((K14-K10)/K9,0) -> 14286 | CL13: =CONCATENATE(S13) -> 
A14: Полная стоимость Товара | K14: =K12+K15 -> 107000 | CF14: По Обычной сделке | CL14: =CONCATENATE(S14) -> 
A15: Наша наценка | K15: =IF(AND(Q1="АКЦИЯ 7-7-7",K9<=7),ROUND(K12*CP17/100,0),ROUND((K12-K10)*CP17/12*K9/100,0)) -> 7000 | CF15: =ROUND((K16*CP20*K9)/(12*100),0) -> 0 | CH15: =IF((CN18+CO18)=0,0,IF(CF15-CF11>=0,CF15-CF11,0)) -> 0 | CL15: =CONCATENATE(S15) ->  | CU15: =AND(CM19=1,N5*30/100<K10) -> FALSE
A16: Сумма финансирования * | K16: =K12-K10 -> 93000 | CH16: =IF((CN19+CO19)=0,0,IF(CF15-CF11>=0,CF15-CF11,0)) -> 0 | CL16: =CONCATENATE(S16) -> 
C17: * | D17: Если сумма финансирования менее 200 000р.срок рассмотрения 30 мин. | CL17: Минимальная годовая % надбавка | CM17: 22 | CO17: =IF(Q1="АКЦИЯ 0-0-6",CS18+CT18,IF(Q1="АКЦИЯ 7-7-7",CS21+CT21,IF(Q1="АКЦИЯ 0-0-12",CS19+CT19,CT20+CS20))) -> 7 | CP17: =CO17 -> 7 | CS17: Наценка по сроку
D18: Если сумма финансирования более 200 000р. срок рассмотрения 2-3 дня . | CL18: Увеличение без поручителей | CM18: 6 | CQ18: АКЦИЯ 0-0-6 | CS18: =IF(K9<=6,0,IF(K9<=12,11,22)) -> 11 | CT18: =IF(AND(CM19=1,K12*30/100<=K10),0,IF(AND(CM19=0,K12*50/100<=K10),0,IF(CM19=2,0,IF(CM19=1,6,16)))) -> 16
D19: Если сумма финансирования менее 80 000р. допускается без поручителей | CM19: =IF(K11>=2,2,IF(K11=1,1,0)) -> 0 | CQ19: АКЦИЯ 0-0-12 | CS19: =IF(K9<=12,0,11) -> 0 | CT19: =IF(AND(CM19=1,K12*30/100<=K10),0,IF(AND(CM19=0,K12*50/100<=K10),0,IF(CM19=2,0,IF(CM19=1,6,16)))) -> 16
CQ20: Обычная | CS20: 22 | CT20: =IF(CM19=2,0,IF(CM19=1,6,16)) -> 16
CQ21: АКЦИЯ 7-7-7 | CS21: =IF(AND(K9<=7,K10>=AF9),7,IF(K9<=12,28,33)) -> 7 | CT21: =IF(AND(CM19=0,K9>7),0,IF(AND(CM19=1,K9>7),-10,IF(AND(CM19=2,K9>7),-16,0))) -> 0

Sheet Задолженность
F1: 6 | G1: 7 | H1: 8 | I1: 9 | J1: 10 | K1: 11 | L1: 12 | M1: 13 | N1: 14 | O1: 15 | P1: 16 | Q1: 17 | R1: 18 | S1: 19 | T1: 20 | U1: 21 | V1: 22 | W1: 23 | X1: 24 | Y1: 25 | Z1: 26 | AA1: 27 | AB1: 28 | AC1: 29 | AD1: 30 | AE1: 31 | AF1: 32 | AG1: 33 | AH1: 34 | AI1: 35 | AJ1: 36 | AK1: 37 | AL1: 38 | AM1: 39 | AN1: 40 | AO1: 41 | AP1: 42 | AQ1: 43 | AR1: 44 | AS1: 45 | AT1: 46 | AU1: 47 | AV1: 48 | AW1: 49 | AX1: 50 | AY1: 51 | AZ1: 52 | BA1: 53 | BB1: 54 | BC1: 55 | BD1: 56 | BE1: 57 | BF1: 58 | BG1: 59 | BH1: 60 | BI1: 61 | BJ1: 62 | BK1: 63 | BL1: 64 | BM1: 65 | BN1: 66 | BO1: 67 | BP1: 68 | BQ1: 69 | BR1: 70 | BS1: 71 | BT1: 72 | BU1: 73 | BV1: 74 | BW1: 75 | BX1: 76 | BY1: 77 | BZ1: 78 | CA1: 79 | CB1: 80 | CC1: 81
B2: Номер | C2: Данные должника | AV2: Спальный гарнитур | AW2: Кухонная мебель | AX2: Мягкая мебель | AY2: Бытовая техника | AZ2: Телевизоры | BA2: Телефоны | BB2: Шкаф-купе | BC2: Иное | BD2: Спальный гарнитур | BE2: Кухонная мебель | BF2: Мягкая мебель | BG2: Бытовая техника | BH2: Телевизоры | BI2: Телефоны | BJ2: Шкаф-купе | BK2: Иное | BL2: Спальный гарнитур | BM2: Кухонная мебель | BN2: Мягкая мебель | BO2: Бытовая техника | BP2: Телевизоры | BQ2: Телефоны | BR2: Шкаф-купе | BS2: Иное | BW2: ВС | BX2: ПН | BY2: ВТ | BZ2: СР | CA2: ЧТ | CB2: ПТ | CC2: СБ
C3: договор № | D3: дата | E3: ФИО | F3: количество Поручителей | G3: стоимость товара | J3: ежемесячный платеж | K3: задолженность | L3: первоначальный взнос | Q3: Начисление | R3: Эффективная ставка | AV3: =SUM(AV$8:AV$1048576) -> 0 | AW3: =SUM(AW$8:AW$1048576) -> 0 | AX3: =SUM(AX$8:AX$1048576) -> 0 | AY3: =SUM(AY$8:AY$1048576) -> 0 | AZ3: =SUM(AZ$8:AZ$1048576) -> 0 | BA3: =SUM(BA$8:BA$1048576) -> 0 | BB3: =SUM(BB$8:BB$1048576) -> 0 | BC3: =SUM(BC$8:BC$1048576) -> 0 | BD3: =SUM(BD$8:BD$1048576) -> 0 | BE3: =SUM(BE$8:BE$1048576) -> 0 | BF3: =SUM(BF$8:BF$1048576) -> 0 | BG3: =SUM(BG$8:BG$1048576) -> 1 | BH3: =SUM(BH$8:BH$1048576) -> 0 | BI3: =SUM(BI$8:BI$1048576) -> 0 | BJ3: =SUM(BJ$8:BJ$1048576) -> 1 | BK3: =SUM(BK$8:BK$1048576) -> 0 | BL3: =SUM(BL$8:BL$1048576) -> 0 | BM3: =SUM(BM$8:BM$1048576) -> 0 | BN3: =SUM(BN$8:BN$1048576) -> 0 | BO3: =SUM(BO$8:BO$1048576) -> 8292.61 | BP3: =SUM(BP$8:BP$1048576) -> 0 | BQ3: =SUM(BQ$8:BQ$1048576) -> 0 | BR3: =SUM(BR$8:BR$1048576) -> 515020.39 | BS3: =SUM(BS$8:BS$1048576) -> 0 | BW3: =SUM(BW$8:BW$1048576) -> 0 | BX3: =SUM(BX$8:BX$1048576) -> 1 | BY3: =SUM(BY$8:BY$1048576) -> 0 | BZ3: =SUM(BZ$8:BZ$1048576) -> 0 | CA3: =SUM(CA$8:CA$1048576) -> 0 | CB3: =SUM(CB$8:CB$1048576) -> 0 | CC3: =SUM(CC$8:CC$1048576) -> 0 | CE3: =SUM(CE$8:CE$1048576) -> 0 | CF3: =SUM(CF$8:CF$1048576) -> 0
G4: Полная | H4: тело | I4: наценка ТНВ | M4: Срок | N4: Долг | O4: -2 | P4: Кол-во | S4: Погашения | T4: Погашения | U4: Погашения | V4: Погашения | W4: Погашения | X4: Погашения | Y4: Погашения | Z4: Погашения | AA4: Погашения | AB4: Погашения | AC4: Погашения | AD4: Погашения | AE4: Погашения | AF4: Погашения | AG4: Погашения | AH4: Погашения | AI4: Погашения | AJ4: Погашения | AK4: Погашения | AL4: Погашения | AM4: Погашения | AN4: Погашения | AO4: Погашения | AP4: Погашения | AQ4: Погашения | AR4: Погашения | CE4: Погашено всего | CF4: Погашено наценки
A6: =DAY(D6) -> 0 | K6: =G6-L6-SUM(S6:AQ6) -> 0 | N6: =IF(G6>0,Q6-K6,0) -> 0 | O6: =IF((N6/J6)>=0,0,IF((N6/J6)>-0.5,-0.1,IF((N6/J6)>-2,-1,-2))) ->  | P6: =IF(D6="",0,DATEDIF(D6,NOW(),"m")) -> 0 | Q6: =IF(G6>0,IF(G6-L6-(J6)*P6<0,0,G6-L6-(J6)*P6),0) -> 0 | R6: 0.4380420625 | CE6: =G6-L6-K6 -> 0 | CF6: =IF(CE6=0,0,ROUND(CE6*I6/(H6-L6+I6),2)) -> 0 | CM6: =IF(МояФункция(H6-L6,I6,M6,P6,CN6,T6:AQ6)>0,МояФункция(H6-L6,I6,M6,P6,CN6,T6:AQ6),0) ->  | CN6: =IF(D6>CO6,0,DATEDIF(D6,CO6,"m")) -> 1413 | CO6: 2017-10-01 | CP6: =CF6-CM6 ->  | CQ6: =B6 -> 0 | CR6: =CQ6*CE6/(H6-L6) -> 
BU7: А6МТВ
A9: =DAY(D9) -> 25 | B9: 55331.3 | C9: 108/КП-0618ММ | D9: 2018-06-25T15:14:36 | E9: Юсуповадибирова Патиматхамиз Магомедрасуловнаовна | F9: 1 | G9: 647509 | H9: 553313 | I9: 94196 | J9: 51459 | K9: =G9-L9-SUM(S9:AQ9) -> 617509 | L9: 30000 | M9: 12 | N9: =IF(G9>0,Q9-K9,0) -> 0 | O9: =IF((N9/J9)>=0,0,IF((N9/J9)>-0.5,-0.1,IF((N9/J9)>-2,-1,-2))) -> 0 | P9: =IF(D9="",0,DATEDIF(D9,NOW(),"m")) -> 0 | Q9: =IF(G9>0,IF(G9-L9-(J9)*P9<0,0,G9-L9-(J9)*P9),0) -> 617509 | R9: 0.6053098738 | AT9: 8928 569 92 66 | AU9: ИП Лаварсанова Нурият Лаварсановна | BD9: 0 | BE9: 0 | BF9: 0 | BG9: 1 | BH9: 0 | BI9: 0 | BJ9: 1 | BK9: 0 | BL9: 0 | BM9: 0 | BN9: 0 | BO9: 8292.61 | BP9: 0 | BQ9: 0 | BR9: 515020.39 | BS9: 0 | BU9: А7ММ | BW9: 0 | BX9: 1 | BY9: 0 | BZ9: 0 | CA9: 0 | CB9: 0 | CC9: 0 | CE9: =G9-L9-K9 -> 0 | CF9: =IF(CE9=0,0,ROUND(CE9*I9/(H9-L9+I9),2)) -> 0 | CM9: =IF(МояФункция(H9-L9,I9,M9,P9,CN9,T9:AQ9)>0,МояФункция(H9-L9,I9,M9,P9,CN9,T9:AQ9),0) ->  | CN9: =IF(D9>CO9,0,DATEDIF(D9,CO9,"m")) -> 0 | CO9: 2017-10-01 | CP9: =CF9-CM9 ->  | CQ9: =B9 -> 55331.3 | CR9: =CQ9*CE9/(H9-L9) -> 0
C10: 108/КП-0618ММ | D10: Алимагомедова Зуруд Гаджикурбановна | E10: Курамагомедова Маржанат Шарипгаджиевна | BU10: А7ММ

Sheet Приходник
AR3: Унифицированная форма № КО-1 | BM3: Л и н и я о т р е з а
AR4: Утверждена постановлением Госкомстата
AR5: России от 18.08.98 г. № 88 | BQ5: =CONCATENATE('Договор, акт'!AG1) -> ОРИОН
BQ6: организация
AZ8: Код | BQ8: КВИТАНЦИЯ
AX9: Форма по ОКУД | AZ9: 0310001
A10: =CONCATENATE(BQ5) -> ОРИОН | AX10: по ОКПО
A11: организация | BQ11: к приходному кассовому ордеру № | CM11: ='Договор, акт'!CF5 -> 108
A13: структурное подразделение | BQ13: от | BT13: =NOW() -> 2018-06-25T17:09:16.230
AR15: Номер | AY15: Дата | BQ15: Принято от | BY15: =CONCATENATE('Договор, акт'!CE2) -> Юсуповадибирова Патиматхамиз Магомедрасуловнаовна
H16: ПРИХОДНЫЙ КАССОВЫЙ ОРДЕР | AR16: документа | AY16: составления
AR17: =CONCATENATE(CM11) -> 108 | AY17: =BT13 -> 2018-06-25T17:09:16.230
BQ18: Основание: | BX18: Договор купли продажи
A19: Дебет | G19: Кредит | AM19: Сумма, | AW19: Код | BQ19: =CONCATENATE('Договор, акт'!CL6," от ") -> 108А/КП-0618ММ от
L20: код | U20: корреспон- | AD20: код | AM20: руб. коп. | AW20: целевого | BQ20: ='Договор, акт'!AG6 -> 25.06.2018г.
L21: структурного | U21: дирующий | AD21: аналитичес- | AW21: назначения
L22: подразделения | U22: счет, субсчет | AD22: кого учета
BQ23: Сумма | BV23: =SUM('Договор, акт'!K14:N14) -> 30000 | CJ23: руб. | CM23: 00 | CS23: коп.
BV24: цифрами
A25: Принято от | I25: =CONCATENATE(BY15," ",BQ17) -> Юсуповадибирова Патиматхамиз Магомедрасуловнаовна | BQ25: =ЧислоПропись(BV23) -> Тридцать тысяч
A27: Основание: | I27: =CONCATENATE(BX18," ",BQ19,BQ20) -> Договор купли продажи 108А/КП-0618ММ от 25.06.2018г.
CJ28: руб. | CS28: коп.
A29: Сумма | F29: =CONCATENATE(BQ25," ",BQ27) -> Тридцать тысяч | BQ29: В том числе
F30: прописью
A31: =CONCATENATE(BV23) -> 30000 | AR31: руб. | AU31: =CONCATENATE(CM23) -> 00 | BI31: коп. | BR31: =BT13 -> 2018-06-25T17:09:16.230
A32: В том числе | I32: =CONCATENATE(BY29) -> 
A33: Приложение | BV33: М. П. (штампа)
A35: Принято | BQ35: Принято
N36: (подпись) | Z36: (расшифровка подписи) | CC36: (подпись) | CL36: (расшифровка подписи)

Sheet Договор, акт
A1: Место продажи | J1: ООО "ОРИОН" | R1: Наименование организации | W1: ОРИОН | AF1: 4545454545454 | AG1: =CONCATENATE(W1) -> ОРИОН | AI1: 35 | AJ1: 36 | AK1: 37 | AL1: 38 | AM1: 39 | AN1: 40 | AO1: 41 | AP1: 42 | AQ1: 43 | AR1: 44 | AS1: 45 | AT1: 46 | AU1: 47 | AV1: 48 | AW1: 49 | AX1: 50 | AY1: 51 | AZ1: 52 | BA1: 53 | BB1: 54 | BC1: 55 | BD1: 56 | BE1: 57 | BF1: 58 | BG1: 59 | BH1: 60 | BI1: 61 | BJ1: 62 | BK1: 63 | BL1: 64 | BM1: 65 | BN1: 66 | BO1: 67 | BP1: 68 | BQ1: 69 | BR1: 70 | BS1: 71 | BT1: 72 | BU1: 73 | BV1: 74 | BW1: 75 | BX1: 76 | BY1: 77 | BZ1: 78 | CA1: 79 | CB1: 80 | CC1: 81 | CD1: 82 | CE1: 83 | CF1: 84 | CG1: 85 | CH1: 86 | CI1: 87 | CJ1: 88 | CK1: 89 | CL1: 90 | CM1: 91 | CN1: 92 | CO1: 93 | CP1: 94 | CQ1: 95 | CR1: =XIRR(CW1:DU1,CW2:DU2) -> 0.6053099096 | CS1: =CM21+(2-CM23)*CM22 -> 28 | CT1: =K13 -> 12 | CU1: =K20 -> 604544 | CV1: =CU1+CU1*CS1/12*CT1/100 -> 773816.32 | CW1: =-CU1 -> -604544 | CX1: =ROUND(CV1/CT1,2) -> 64484.69 | CY1: =ROUND(CV1/CT1,2) -> 64484.69 | CZ1: =ROUND(CV1/CT1,2) -> 64484.69 | DA1: =IF(CT1<4,0,ROUND(CV1/CT1,2)) -> 64484.69 | DB1: =IF(CT1<5,0,ROUND(CV1/CT1,2)) -> 64484.69 | DC1: =IF(CT1<6,0,ROUND(CV1/CT1,2)) -> 64484.69 | DD1: =IF(CT1<7,0,ROUND(CV1/CT1,2)) -> 64484.69 | DE1: =IF(CT1<8,0,ROUND(CV1/CT1,2)) -> 64484.69 | DF1: =IF(CT1<9,0,ROUND(CV1/CT1,2)) -> 64484.69 | DG1: =IF(CT1<10,0,ROUND(CV1/CT1,2)) -> 64484.69 | DH1: =IF(CT1<11,0,ROUND(CV1/CT1,2)) -> 64484.69 | DI1: =IF(CT1<12,0,ROUND(CV1/CT1,2)) -> 64484.69 | DJ1: =IF(CT1<13,0,ROUND(CV1/CT1,2)) -> 0 | DK1: =IF(CT1<14,0,ROUND(CV1/CT1,2)) -> 0 | DL1: =IF(CT1<15,0,ROUND(CV1/CT1,2)) -> 0 | DM1: =IF(CT1<16,0,ROUND(CV1/CT1,2)) -> 0 | DN1: =IF(CT1<17,0,ROUND(CV1/CT1,2)) -> 0 | DO1: =IF(CT1<18,0,ROUND(CV1/CT1,2)) -> 0 | DP1: =IF(CT1<19,0,ROUND(CV1/CT1,2)) -> 0 | DQ1: =IF(CT1<20,0,ROUND(CV1/CT1,2)) -> 0 | DR1: =IF(CT1<21,0,ROUND(CV1/CT1,2)) -> 0 | DS1: =IF(CT1<22,0,ROUND(CV1/CT1,2)) -> 0 | DT1: =IF(CT1<23,0,ROUND(CV1/CT1,2)) -> 0 | DU1: =IF(CT1<24,0,ROUND(CV1/CT1,2)) -> 0
A2: Фамилия , имя , отчество Клиента | K2: Юсуповадибирова Патиматхамиз Магомедрасуловнаовна | X2: тел | Y2: 8928 569 92 77 | AF2: 056215620 | AG2: ОГРНИП | AH2: ИНН | CE2: =TRIM(K2) -> Юсуповадибирова Патиматхамиз Магомедрасуловнаовна | CF2: =TRIM(Y2) -> 8928 569 92 77 | CL2: =CONCATENATE(K2) -> Юсуповадибирова Патиматхамиз Магомедрасуловнаовна | CW2: 2017-12-01 | CX2: =EDATE(CW2,1) -> 2018-01-01 | CY2: =EDATE(CX2,1) -> 2018-02-01 | CZ2: 2018-03-01 | DA2: 2018-04-01 | DB2: 2018-05-01 | DC2: 2018-06-01 | DD2: 2018-07-01 | DE2: 2018-08-01 | DF2: 2018-09-01 | DG2: 2018-10-01 | DH2: 2018-11-01 | DI2: 2018-12-01 | DJ2: =EDATE(DI2,1) -> 2019-01-01 | DK2: 2019-02-01 | DL2: 2019-03-01 | DM2: 2019-04-01 | DN2: 2019-05-01 | DO2: 2019-06-01 | DP2: 2019-07-01 | DQ2: 2019-08-01 | DR2: 2019-09-01 | DS2: 2019-10-01 | DT2: 2019-11-01 | DU2: 2019-12-01
A3: Фамилия , имя , отчество Поручителя | K3: iuyuiyiyi | X3: тел | CE3: =TRIM(K3) -> iuyuiyiyi | CF3: =TRIM(Y3) ->  | CG3: =TRIM(#REF!) ->  | CH3: =TRIM(CK3) ->  | CJ3: =TRIM(CE3) -> iuyuiyiyi
A4: Фамилия , имя , отчество Поручителя | K4: Курамагомедова Маржанат Шарипгаджиевна | X4: тел | CE4: =TRIM(K4) -> Курамагомедова Маржанат Шарипгаджиевна | CF4: =TRIM(Y4) ->  | CG4: =TRIM(#REF!) ->  | CJ4: =TRIM(CE4) -> Курамагомедова Маржанат Шарипгаджиевна
A5: № договора | K5: 108 | Q5: АКЦИЯ 0-0-6 | X5: Торговая точка | AC5: ММ | CF5: =CONCATENATE(K5) -> 108 | CG5: =IF(Q5="АКЦИЯ 0-0-6","А",IF(Q5="АКЦИЯ 0-0-12","А","")) -> А | CH5: =RIGHT(K5,CS5-CR5) ->  | CL5: =CONCATENATE(K5,CG5,"/П-",CH6,CI6,CK6,AC5) -> 108А/П-0618ММ | CR5: =SEARCH("к",K5) ->  | CS5: =LEN(K5) -> 3 | CY5: =CONCATENATE(K5) -> 108 | DD5: ОБЫЧНАЯ | DE5: АКЦИЯ 0-0-6 | DF5: АКЦИЯ 7-7-7 | DG5: АКЦИЯ 0-0-12
A6: Дата заключения | K6: =CONCATENATE(CG6,".",CH6,CI6,".",CJ6,"г.") -> 25.06.2018г. | AF6: =NOW() -> 2018-06-25T17:09:16.230 | AG6: =CONCATENATE(K6) -> 25.06.2018г. | CE6: =DAY(AF6) -> 25 | CG6: =DAY(AF6) -> 25 | CH6: =IF(CI6<10,0,"") -> 0 | CI6: =MONTH(AF6) -> 6 | CJ6: =YEAR(AF6) -> 2018 | CK6: =RIGHT(CJ6,2) -> 18 | CL6: =CONCATENATE(K5,CG5,"/КП-",CH6,CI6,CK6,AC5) -> 108А/КП-0618ММ | CY6: =CONCATENATE(K6) -> 25.06.2018г.
A7: Наименование Товара | AG7: =CONCATENATE(AG5," от ",AG6) -> от 25.06.2018г. | CG7: =CONCATENATE(CH7,AC5) -> А6ММ | CH7: =IF(Q5="АКЦИЯ 0-0-6","А6",IF(Q5="АКЦИЯ 7-7-7","А7",IF(Q5="АКЦИЯ 0-0-12","А12",""))) -> А6 | CL7: =CONCATENATE(L7) -> 
A8: Виды Товаров | H8: Спальный гарнитур | K8: Кухонная мебель | N8: Мягкая мебель | Q8: Бытовая техника | T8: Телевизоры | W8: Телефоны | Z8: Шкаф-купе | AC8: Иное | AF8: 0.25 | CL8: Спальный гарнитур | CM8: Кухонная мебель | CN8: Мягкая мебель | CO8: Бытовая техника | CP8: Телевизоры | CQ8: Телефоны | CR8: Шкаф-купе | CS8: Иное
A9: Чеки на сумму | Z9: 544545 | AF9: =K16/4 -> 158636 | CK9: =SUM(CL9:CS9) -> 634544 | CL9: =SUM(H9:J12) -> 0 | CM9: =SUM(K9:M12) -> 0 | CN9: =SUM(N9:P12) -> 0 | CO9: =SUM(Q9:S12) -> 89999 | CP9: =SUM(T9:V12) -> 0 | CQ9: =SUM(W9:Y12) -> 0 | CR9: =SUM(Z9:AB12) -> 544545 | CS9: =SUM(AC9:AE12) -> 0
A10: Чеки на сумму | Q10: 89999 | AF10: 0.3 | CL10: =ROUND(CL9-(K14/CK9)*CL9,2) -> 0 | CM10: =ROUND(CM9-(K14/CK9)*CM9,2) -> 0 | CN10: =ROUND(CN9-(K14/CK9)*CN9,2) -> 0 | CO10: =ROUND(CO9-(K14/CK9)*CO9,2) -> 85744.02 | CP10: =ROUND(CP9-(K14/CK9)*CP9,2) -> 0 | CQ10: =ROUND(CQ9-(K14/CK9)*CQ9,2) -> 0 | CR10: =ROUND(CR9-(K14/CK9)*CR9,2) -> 518799.98 | CS10: =ROUND(CS9-(K14/CK9)*CS9,2) -> 0
A11: Чеки на сумму | AF11: =K16*30/100 -> 190363.2 | CL11: =IF(CL10>0,1,0) -> 0 | CM11: =IF(CM10>0,1,0) -> 0 | CN11: 0 | CO11: 1 | CP11: 0 | CQ11: 0 | CR11: 1 | CS11: 0
A12: Чеки на сумму | AF12: 0.07 | CI12: =WEEKDAY(AF6) -> 2
A13: Срок ( в мес) | K13: 12 | O13: прописью | S13: =ЧислоПропись(K13) -> Двенадцать | AF13: =K16*7/100 -> 44418.08 | CL13: ВС | CM13: ПН | CN13: ВТ | CO13: СР | CP13: ЧТ | CQ13: ПТ | CR13: СБ
A14: Обеспечительный взнос | K14: 30000 | O14: Сумма прописью | S14: Тридцать тысяч | AF14: 0.5 | CF14: Скидка Киргу | CH14: Общая наценка | CL14: =IF(CI12=1,1,0) -> 0 | CM14: =IF(CI12=2,1,0) -> 1 | CN14: =IF(CI12=3,1,0) -> 0 | CO14: =IF(CI12=4,1,0) -> 0 | CP14: =IF(CI12=5,1,0) -> 0 | CQ14: =IF(CI12=6,1,0) -> 0 | CR14: =IF(CI12=7,1,0) -> 0
A15: Количество Поручителей | K15: 1 | O15: прописью | S15: Один | AF15: =K16/2 -> 317272 | CE15: =IF(Q5="АКЦИЯ 0-0-6",11,IF(Q5="АКЦИЯ 7-7-7",10,IF(Q5="АКЦИЯ 0-0-12",22,0))) -> 11 | CF15: =ROUND((K16*CE15)/100,2) -> 69799.84 | CH15: =ROUND(CF15+K19,0) -> 172572
A16: Стоимость Товара | K16: =SUM(CL9:CS9) -> 634544 | O16: Сумма прописью | S16: Шестьсот тридцать четыре тысячи пятьсот сорок четыре | CL16: =CONCATENATE(S16) -> Шестьсот тридцать четыре тысячи пятьсот сорок четыре
A17: Сумма ежемесячного платежа | K17: =ROUND((K18-K14)/K13,0) -> 58943 | O17: Сумма прописью | S17: Пятьдесят восемь тысяч девятьсот сорок три | CL17: =CONCATENATE(S17) -> Пятьдесят восемь тысяч девятьсот сорок три
A18: Полная стоимость Товара | K18: =K16+K19 -> 737316 | O18: Сумма прописью | S18: Семьсот тридцать семь тысяч триста шестнадцать | CF18: По Обычной сделке | CL18: =CONCATENATE(S18) -> Семьсот тридцать семь тысяч триста шестнадцать
A19: Наша наценка | K19: =IF(AND(Q5="АКЦИЯ 7-7-7",K13<=7),ROUND(K16*CP21/100,0),ROUND((K16-K14)*CP21/12*K13/100,0)) -> 102772 | O19: Сумма прописью | S19: Сто две тысячи семьсот семьдесят два | CF19: =ROUND((K20*CP24*K13)/(12*100),0) -> 0 | CH19: =IF((CN22+CO22)=0,0,IF(CF19-CF15>=0,CF19-CF15,0)) -> 0 | CL19: =CONCATENATE(S19) -> Сто две тысячи семьсот семьдесят два | CU19: =AND(CM23=1,N9*30/100<K14) -> TRUE
A20: Сумма финансирования * | K20: =K16-K14 -> 604544 | O20: Сумма прописью | S20: Шестьсот четыре тысячи пятьсот сорок четыре | CH20: =IF((CN23+CO23)=0,0,IF(CF19-CF15>=0,CF19-CF15,0)) -> 0 | CL20: =CONCATENATE(S20) -> Шестьсот четыре тысячи пятьсот сорок четыре
CL21: Минимальная годовая % надбавка | CM21: 22 | CO21: =IF(Q5="АКЦИЯ 0-0-6",CS22+CT22,IF(Q5="АКЦИЯ 7-7-7",CS25+CT25,IF(Q5="АКЦИЯ 0-0-12",CS23+CT23,CT24+CS24))) -> 17 | CP21: =CO21 -> 17 | CS21: Наценка по сроку
CL22: Увеличение без поручителей | CM22: 6 | CQ22: АКЦИЯ 0-0-6 | CS22: =IF(K13<=6,0,IF(K13<=12,11,22)) -> 11 | CT22: =IF(AND(CM23=1,K16*30/100<=K14),0,IF(AND(CM23=0,K16*50/100<=K14),0,IF(CM23=2,0,IF(CM23=1,6,16)))) -> 6
CM23: =IF(K15>=2,2,IF(K15=1,1,0)) -> 1 | CQ23: АКЦИЯ 0-0-12 | CS23: =IF(K13<=12,0,11) -> 0 | CT23: =IF(AND(CM23=1,K16*30/100<=K14),0,IF(AND(CM23=0,K16*50/100<=K14),0,IF(CM23=2,0,IF(CM23=1,6,16)))) -> 6
CQ24: Обычная | CS24: 22 | CT24: =IF(CM23=2,0,IF(CM23=1,6,16)) -> 6
CQ25: АКЦИЯ 7-7-7 | CS25: =IF(AND(K13<=7,K14>=AF13),7,IF(K13<=12,28,33)) -> 28 | CT25: =IF(AND(CM23=0,K13>7),0,IF(AND(CM23=1,K13>7),-10,IF(AND(CM23=2,K13>7),-16,0))) -> -10
